fUST/lending_fUST_20240224
["ID","MTS","AMOUNT","RATE_DAILY","PERIOD"]
[315032777,1708738241692,-2080.58576513,0.00019178,2]
[315032779,1708738241701,-500.0,0.00019178,2]
[315032781,1708738241710,-262.13123015,0.00019178,2]
[315032909,1708738243078,-339.35837532,0.00019178,2]
[315033203,1708738245983,-152.92039453,0.00019178,2]
[315033205,1708738245993,-2057.47,0.00019178,2]
[315033207,1708738246002,-500.0,0.00019178,2]
[315033209,1708738246012,-621.17,0.00019178,2]
[315033211,1708738246022,-3386.63,0.00019178,2]
[315033213,1708738246031,-3521.49,0.00019178,2]
[315033215,1708738246041,-500.0,0.00019178,2]
[315033217,1708738246050,-1259.0,0.00019178,2]
[315033219,1708738246061,-1222.19,0.00019178,2]
[315033221,1708738246070,-852.03,0.00019178,2]
[315033223,1708738246079,-930.21,0.00019178,2]
[315033225,1708738246088,-1882.32,0.00019178,2]
[315033227,1708738246098,-329.16,0.00019178,2]
[315033229,1708738246107,-253.71,0.00019178,2]
[315033231,1708738246118,-9503.1,0.00019178,2]
[315033233,1708738246129,-500.0,0.00019178,2]
[315033235,1708738246139,-1228.48,0.00019178,2]
[315033237,1708738246150,-529.58,0.00019178,2]
[315033239,1708738246159,-1082.87,0.00019178,2]
[315033241,1708738246169,-1145.01,0.00019178,2]
[315033243,1708738246178,-1060.64,0.00019178,2]
[315033245,1708738246187,-842.43,0.00019178,2]
[315033247,1708738246197,-400.48270371,0.00019178,2]
[315033249,1708738246207,-500.0,0.00019178,2]
[315033251,1708738246216,-1094.12,0.00019178,2]
[315033253,1708738246226,-619.04646632,0.00019178,2]
[315033255,1708738246235,-220.35143326,0.00019178,2]
[315033257,1708738246245,-500.92518516,0.00019178,2]
[315033259,1708738246254,-500.0,0.00019178,2]
[315033261,1708738246264,-500.0,0.00019178,2]
[315033263,1708738246274,-301.4762702,0.00019178,2]
[315033265,1708738246284,-502.62926354,0.00019178,2]
[315033267,1708738246294,-713.05,0.00019178,2]
[315033269,1708738246303,-500.0,0.00019178,2]
[315033271,1708738246313,-237.4159779,0.00019178,2]
[315033273,1708738246323,-511.0,0.00019178,2]
[315033275,1708738246332,-166.666666,0.00019178,2]
[315033277,1708738246341,-500.0,0.00019179,2]
[315033279,1708738246351,-500.0,0.0001918,2]
[315033281,1708738246361,-500.0,0.0001918,2]
[315033283,1708738246371,-500.0,0.0001918,2]
[315033285,1708738246389,-546.95093516,0.0001918,2]
[315033287,1708738246400,-500.0,0.0001918,2]
[315033289,1708738246410,-500.0,0.0001918,2]
[315033291,1708738246420,-8002.27448486,0.00019181,2]
[315033293,1708738246433,-109069.49134303,0.000192,2]
[315033304,1708738246534,-15448.1955684,0.000192,2]
[315033878,1708738982676,8701.57086671,0.00021,14]
[315033883,1708739205676,356.999258,0.00018062,2]
[315033887,1708739373088,201.8126586,0.000181,2]
[315034257,1708739441367,-1309.2621085,0.00018109,2]
[315034260,1708739441377,-8674.81511523,0.00018184,2]
[315034270,1708739441471,-2021.56381413,0.00018184,2]
[315034272,1708739441484,-14203.62107064,0.00018184,2]
[315034274,1708739441494,-201.8126586,0.000188,2]
[315034276,1708739441504,-356.63455273,0.000189,2]
[315034278,1708739441515,-1235.64831925,0.0001899,2]
[315034439,1708739443176,-345.62398651,0.0001899,2]
[315035219,1708739565318,204.54304766,0.0002,20]
[315035224,1708739966836,482.0488144,0.00018083,2]
[315035225,1708740045892,-298.664513,0.00018153,2]
[315035226,1708740066771,-608.36919006,0.00018261,2]
[315035229,1708740304086,298.664513,0.00018183,2]
[315035231,1708740346123,155.00775039,0.00018183,2]
[315035232,1708740364112,155.00775039,0.00018183,2]
[315035233,1708740384145,213.77891449,0.00018183,2]
[315035341,1708740640609,-975.17979533,0.00018671,2]
[315035343,1708740640620,-295.50645373,0.000189,2]
[315035345,1708740640630,-205.0530861,0.00019078,2]
[315035347,1708740640641,-155.36156847,0.00019177,2]
[315035349,1708740640653,-8227.72526251,0.00019177,2]
[315035351,1708740640663,-501.83791653,0.00019178,2]
[315035353,1708740640673,-500.0,0.00019178,2]
[315035356,1708740640684,-501.85941032,0.00019178,2]
[315035358,1708740640694,-503.06174211,0.00019178,2]
[315035360,1708740640704,-500.0,0.00019178,2]
[315035362,1708740640714,-500.0,0.00019178,2]
[315035364,1708740640725,-549.71,0.00019178,2]
[315035366,1708740640736,-506.48059262,0.00019178,2]
[315035368,1708740640746,-500.0,0.00019178,2]
[315035370,1708740640756,-500.0,0.00019178,2]
[315035373,1708740640767,-500.0,0.00019178,2]
[315035375,1708740640777,-500.0,0.00019178,2]
[315035395,1708740640949,-418.18523195,0.00019178,2]
[315035397,1708740640966,-85.55970863,0.00019178,2]
[315035399,1708740640975,-501.05861137,0.00019178,2]
[315035401,1708740640985,-500.0,0.00019178,2]
[315035403,1708740640994,-500.0,0.00019178,2]
[315035405,1708740641003,-207.0474862,0.00019178,2]
[315035408,1708740641015,-432.85285399,0.00019178,2]
[315035410,1708740641025,-500.0,0.00019178,2]
[315035412,1708740641035,-500.0,0.00019178,2]
[315035414,1708740641044,-500.0,0.00019178,2]
[315035416,1708740641053,-502.04420174,0.00019178,2]
[315035418,1708740641063,-586.59,0.00019178,2]
[315035420,1708740641072,-1814.82,0.00019178,2]
[315035422,1708740641081,-502.40806614,0.00019178,2]
[315035424,1708740641091,-500.0,0.00019178,2]
[315035426,1708740641100,-224.73432858,0.00019178,2]
[315035428,1708740641112,-437.34376162,0.00019178,2]
[315035431,1708740641125,-203.4719098,0.00019178,2]
[315035433,1708740641135,-502.19678611,0.00019178,2]
[315035435,1708740641144,-1244.92491229,0.00019178,2]
[315035437,1708740641158,-591.24508771,0.00019178,2]
[315035439,1708740641167,-27.49888334,0.00019178,2]
[315035441,1708740641179,-500.82111666,0.00019178,2]
[315035444,1708740641189,-243.61691275,0.00019178,2]
[315035471,1708740641448,-151.0,0.00019178,2]
[315035492,1708740641648,-105.38308725,0.00019178,2]
[315035494,1708740641659,-308.819087,0.00019178,2]
[315035497,1708740641669,-500.0,0.00019178,2]
[315035498,1708740641679,-364.84736447,0.00019178,2]
[315035784,1708740652106,-135.15263553,0.00019178,2]
[315035785,1708740652126,-15.84736447,0.00019178,2]
[315035786,1708740678204,-151.0,0.00019178,2]
[315035787,1708740696151,-151.0,0.00019178,2]
[315035788,1708740730626,-152.0,0.00019178,2]
[315035789,1708740734852,-152.0,0.00019178,2]
[315035790,1708740928461,-152.0,0.000189,2]
[315035791,1708740950915,2500.0,0.0003,120]
[315035795,1708741004534,-45.00430249,0.000189,2]
[315035796,1708741004555,-106.99569751,0.00019177,2]
[315035801,1708741622378,238.0,0.0003,120]
[315035839,1708741832530,-197.00430249,0.000189,2]
[315035841,1708741832540,-300.93,0.00019,2]
[315035843,1708741832550,-3743.05399752,0.00019177,2]
[315035845,1708741832562,-501.04120554,0.00019177,2]
[315035847,1708741832574,-2036.18674464,0.00019177,2]
[315035849,1708741832589,-325.14397417,0.00019177,2]
[315035852,1708741832604,-462.228,0.00019177,2]
[315035854,1708741832618,-439.565,0.00019177,2]
[315035994,1708741846185,-413.72058819,0.00019177,2]
[315036015,1708741846619,-199.79005494,0.00019177,2]
[315036016,1708741846629,-500.0,0.00019178,2]
[315036017,1708741846638,-502.74126356,0.00019178,2]
[315036018,1708741846647,-500.0,0.00019178,2]
[315036019,1708741846656,-500.0,0.00019178,2]
[315036020,1708741846665,-505.04526406,0.00019178,2]
[315036021,1708741846674,-500.0,0.00019178,2]
[315036022,1708741846684,-506.31,0.00019178,2]
[315036023,1708741846693,-503.64514033,0.00019178,2]
[315036024,1708741846703,-502.06943467,0.00019178,2]
[315036025,1708741846711,-500.8329139,0.00019178,2]
[315036026,1708741846721,-385.99741878,0.00019178,2]
[315036027,1708741846731,-373.60661993,0.00019178,2]
[315036028,1708741846740,-1739.2,0.00019178,2]
[315036029,1708741846750,-500.0,0.00019178,2]
[315036030,1708741846759,-829.49,0.00019178,2]
[315036031,1708741846768,-585.52,0.00019178,2]
[315036032,1708741846781,-597.47,0.00019178,2]
[315036033,1708741846790,-35.06361913,0.00019178,2]
[315036034,1708741846802,-1724.59638087,0.00019178,2]
[315036035,1708741846811,-501.33670102,0.00019178,2]
[315036036,1708741846821,-505.2485523,0.00019178,2]
[315036037,1708741846831,-601.59323826,0.00019178,2]
[315036038,1708741846840,-85.47788444,0.00019178,2]
[315036039,1708741846853,-551.53581837,0.00019178,2]
[315036040,1708741846863,-521.36039873,0.00019178,2]
[315036041,1708741846873,-738.15,0.00019178,2]
[315036042,1708741846883,-500.0,0.00019178,2]
[315036043,1708741846891,-500.0,0.00019178,2]
[315036044,1708741846901,-500.0,0.00019178,2]
[315036045,1708741846910,-503.38633645,0.00019178,2]
[315036046,1708741846920,-500.0,0.00019178,2]
[315036047,1708741846929,-237.39225171,0.00019178,2]
[315036048,1708741846938,-499.09084534,0.00019178,2]
[315036049,1708742111397,275.25,0.0003,120]
[315036050,1708742325754,286.8087047,0.00018127,2]
[315036051,1708742344866,8608.9018585,0.00018127,2]
[315036052,1708742386029,25267.385501,0.00018127,2]
[315036053,1708742529069,10000.0,0.0003,120]
[315036054,1708742537971,531.1683569,0.00018082,2]
[315036055,1708742583933,24900.0,0.00018083,2]
[315036095,1708743038696,-156.45034716,0.00018794,2]
[315036097,1708743038705,-1327.48140668,0.00018894,2]
[315036099,1708743038714,-645.15705004,0.00018895,2]
[315036101,1708743038723,-863.96180398,0.00018896,2]
[315036179,1708743041934,-62.13416388,0.00018896,2]
[315036180,1708743041944,-300.0,0.00018989,2]
[315036181,1708743041953,-202.70546637,0.00019078,2]
[315036182,1708743041964,-294.39580586,0.00019176,2]
[315036183,1708743041973,-8227.72526251,0.00019177,2]
[315036184,1708743041982,-500.0,0.00019178,2]
[315036185,1708743041992,-572.57,0.00019178,2]
[315036186,1708743042001,-1666.73,0.00019178,2]
[315036187,1708743042011,-794.93,0.00019178,2]
[315036188,1708743042021,-500.0,0.00019178,2]
[315036189,1708743042030,-1686.34,0.00019178,2]
[315036190,1708743042039,-200.67491106,0.00019178,2]
[315036191,1708743042049,-561.12,0.00019178,2]
[315036192,1708743042058,-500.96140246,0.00019178,2]
[315036193,1708743042067,-435.78314864,0.00019178,2]
[315036194,1708743042077,-500.0,0.00019178,2]
[315036195,1708743042085,-526.8,0.00019178,2]
[315036196,1708743042095,-500.0,0.00019178,2]
[315036197,1708743042104,-503.77460996,0.00019178,2]
[315036198,1708743042113,-500.0,0.00019178,2]
[315036199,1708743042122,-730.45,0.00019178,2]
[315036200,1708743042133,-500.0,0.00019178,2]
[315036201,1708743042143,-506.89284885,0.00019178,2]
[315036202,1708743042152,-917.46,0.00019178,2]
[315036203,1708743042161,-9114.09593716,0.00019178,2]
[315036217,1708743046686,-1493.47406284,0.00019178,2]
[315036218,1708743046695,-182.32593716,0.00019178,2]
[315036622,1708744241140,-1503.80174049,0.00018897,2]
[315036624,1708744241150,-926.09596786,0.00018898,2]
[315036626,1708744241159,-252.52642704,0.000189,2]
[315036700,1708744242881,-170.7728778,0.000189,2]
[315036701,1708744242891,-691.61781288,0.00019077,2]
[315036702,1708744242901,-202.60306832,0.00019078,2]
[315036703,1708744242911,-155.02635448,0.00019176,2]
[315036704,1708744242921,-1323.78370161,0.00019177,2]
[315036705,1708744242930,-504.40206412,0.00019178,2]
[315036706,1708744242941,-530.85,0.00019178,2]
[315036707,1708744242950,-361.30622789,0.00019178,2]
[315036708,1708744242959,-500.0,0.00019178,2]
[315036709,1708744242969,-500.0,0.00019178,2]
[315036710,1708744242978,-500.0,0.00019178,2]
[315036711,1708744242987,-1673.19,0.00019178,2]
[315036712,1708744242998,-407.88185075,0.00019178,2]
[315036713,1708744243010,-798.54,0.00019178,2]
[315036714,1708744243019,-537.74,0.00019178,2]
[315036715,1708744243028,-1616.08,0.00019178,2]
[315036716,1708744243037,-155.4035263,0.00019178,2]
[315036717,1708744243047,-509.16,0.00019178,2]
[315036718,1708744243057,-506.1698791,0.00019178,2]
[315036719,1708744243069,-500.0,0.00019178,2]
[315036721,1708744243078,-700.02,0.00019178,2]
[315036723,1708744243087,-501.73064645,0.00019178,2]
[315036725,1708744243096,-597.16025338,0.00019178,2]
[315036726,1708744243106,-192.61385488,0.00019178,2]
[315036727,1708744243115,-296.66762337,0.00019178,2]
[315036728,1708744243124,-500.0,0.00019178,2]
[315036729,1708744243133,-10201.08,0.00019178,2]
[315036730,1708744243143,-500.0,0.00019178,2]
[315036731,1708744243153,-748.71,0.00019178,2]
[315036732,1708744243162,-3362.61115577,0.00019178,2]
[315036736,1708744245900,-2374.25884423,0.00019178,2]
[315036737,1708744245911,-823.09,0.00019178,2]
[315036738,1708744245922,-500.0,0.00019178,2]
[315036739,1708744245933,-500.0,0.00019178,2]
[315036740,1708744245943,-500.0,0.00019178,2]
[315036741,1708744245953,-622.73,0.00019178,2]
[315036742,1708744245962,-548.71,0.00019178,2]
[315036743,1708744245972,-2070.99,0.00019178,2]
[315036744,1708744245981,-536.04,0.00019178,2]
[315036745,1708744245990,-500.0,0.00019178,2]
[315036746,1708744245999,-3468.71,0.00019178,2]
[315036747,1708744246008,-3608.44,0.00019178,2]
[315036748,1708744246018,-500.0,0.00019178,2]
[315036749,1708744246026,-10285.91,0.00019178,2]
[315036750,1708744246037,-502.17711239,0.00019178,2]
[315036751,1708744246046,-1172.11,0.00019178,2]
[315036752,1708744246054,-1285.77,0.00019178,2]
[315036753,1708744246063,-854.17,0.00019178,2]
[315036754,1708744246074,-944.41,0.00019178,2]
[315036756,1708744246083,-640.12654761,0.00019178,2]
[315036758,1708744246091,-1002.62866642,0.00019178,2]
[315036759,1708744246100,-1085.18,0.00019178,2]
[315036761,1708744246109,-1098.15,0.00019178,2]
[315036763,1708744246118,-1805.13,0.00019178,2]
[315036765,1708744246127,-242.53843175,0.00019178,2]
[315036767,1708744246137,-1141.87,0.00019178,2]
[315036769,1708744246146,-890.1,0.00019178,2]
[315036771,1708744246155,-502.4719044,0.00019178,2]
[315036773,1708744246164,-282.48131377,0.00019178,2]
[315036775,1708744246173,-1061.75,0.00019178,2]
[315036777,1708744246182,-502.27995433,0.00019178,2]
[315036779,1708744246191,-1246.79,0.00019178,2]
[315036781,1708744246200,-500.0,0.00019178,2]
[315036783,1708744246209,-9776.04,0.00019178,2]
[315036785,1708744246218,-173.4398301,0.00019178,2]
[315036787,1708744246227,-166.666666,0.00019178,2]
[315036789,1708744246236,-11845.54602926,0.000192,2]
[315036795,1708744680531,3510.30684253,0.00021088,14]
[315036797,1708744763195,228.549974,0.00018148,2]
[315036798,1708744806484,-213.31,0.00018899,2]
[315036799,1708745042891,-1039.85811708,0.00018899,2]
[315036800,1708745042913,-367.53159429,0.000189,2]
[315036801,1708745064125,-168.76608343,0.00019078,2]
[315036802,1708745064148,-152.51778481,0.00019104,2]
[315036803,1708745064169,-1253.16811708,0.00019177,2]
[315036804,1708745064192,-172.76102415,0.00019178,2]
[315036805,1708745064215,-500.37983924,0.00019178,2]
[315036806,1708745064236,-501.16241966,0.00019178,2]
[315036807,1708745064258,-181.01664343,0.00019178,2]
[315036808,1708745064280,-638.31525657,0.00019178,2]
[315036809,1708745064302,-573.56413958,0.00019178,2]
[315036810,1708745064324,-500.0,0.00019178,2]
[315036811,1708745064346,-622.47937682,0.00019178,2]
[315036812,1708745064368,-500.0,0.00019178,2]
[315036813,1708745064390,-500.0,0.00019178,2]
[315036814,1708745064412,-500.0,0.00019178,2]
[315036815,1708745064434,-534.72,0.00019178,2]
[315036816,1708745064456,-500.0,0.00019178,2]
[315036817,1708745064479,-500.0,0.00019178,2]
[315036818,1708745064501,-761.8,0.00019178,2]
[315036819,1708745064523,-514.99,0.00019178,2]
[315036820,1708745064544,-500.0,0.00019178,2]
[315036821,1708745064566,-175.89272658,0.00019178,2]
[315036822,1708745064589,-500.0,0.00019178,2]
[315036823,1708745064615,-502.64917668,0.00019178,2]
[315036824,1708745064638,-500.0,0.00019178,2]
[315036825,1708745064659,-500.0,0.00019178,2]
[315036826,1708745064681,-504.24599578,0.00019178,2]
[315036827,1708745064703,-574.7,0.00019178,2]
[315036828,1708745064725,-502.78919013,0.00019178,2]
[315036829,1708745064748,-500.0,0.00019178,2]
[315036830,1708745064771,-1405.15,0.00019178,2]
[315036831,1708745064794,-996.29,0.00019178,2]
[315036832,1708745064820,-10576.67,0.00019178,2]
[315036833,1708745064842,-501.38156923,0.00019178,2]
[315036834,1708745064863,-500.0,0.00019178,2]
[315036835,1708745064886,-1170.91,0.00019178,2]
[315036836,1708745064909,-2037.98,0.00019178,2]
[315036837,1708745064931,-1152.26,0.00019178,2]
[315036838,1708745064954,-500.0,0.00019178,2]
[315036839,1708745064975,-501.78232259,0.00019178,2]
[315036840,1708745064997,-938.83,0.00019178,2]
[315036841,1708745065018,-500.0,0.00019178,2]
[315036842,1708745065041,-500.0,0.00019178,2]
[315036843,1708745065066,-979.25,0.00019178,2]
[315036844,1708745065088,-500.0,0.00019178,2]
[315036845,1708745065112,-504.80946947,0.00019178,2]
[315036846,1708745065133,-500.0,0.00019178,2]
[315036847,1708745065154,-560.7,0.00019178,2]
[315036848,1708745065176,-441.3462656,0.00019178,2]
[315036849,1708745065198,-1679.39,0.00019178,2]
[315036850,1708745065221,-500.0,0.00019178,2]
[315036851,1708745065243,-500.0,0.00019178,2]
[315036852,1708745065266,-500.0,0.00019178,2]
[315036853,1708745065288,-802.0,0.00019178,2]
[315036854,1708745065450,-177.06397755,0.00019178,2]
[315036855,1708745065477,-500.0,0.00019178,2]
[315036856,1708745065499,-1548.74,0.00019178,2]
[315036857,1708745065522,-771.43,0.00019178,2]
[315036858,1708745065544,-601.17,0.00019178,2]
[315036859,1708745065567,-9943.51,0.00019178,2]
[315036860,1708745065590,-500.0,0.00019178,2]
[315036861,1708745065612,-573.51,0.00019178,2]
[315036862,1708745065635,-678.03,0.00019178,2]
[315036863,1708745065659,-835.87,0.00019178,2]
[315036864,1708745065683,-505.94702494,0.00019178,2]
[315036865,1708745065707,-3513.83,0.00019178,2]
[315036866,1708745065729,-956.81,0.00019178,2]
[315036867,1708745065751,-501.73084358,0.00019178,2]
[315036868,1708745065774,-3688.05,0.00019178,2]
[315036869,1708745065796,-170.243416,0.00019178,2]
[315036870,1708745065821,-166.666666,0.00019178,2]
[315036871,1708745065843,-170.243416,0.00019178,2]
[315036872,1708745065866,-109705.09754373,0.000192,2]
[315036885,1708745432048,-546.37918784,0.00018899,2]
[315037011,1708745441915,-336.12682307,0.00018898,2]
[315037012,1708745441929,-106.52140116,0.00018899,2]
[315037013,1708745441940,-245.02106286,0.000189,2]
[315037014,1708745441950,-3450.26996896,0.00019132,2]
[315037015,1708745441963,-1000.37633248,0.00019132,2]
[315037063,1708746632255,-652.900589,0.00018882,2]
[315037064,1708746632265,-360.67997645,0.00018883,2]
[315037065,1708746632274,-336.12682307,0.00018885,2]
[315037066,1708746632284,-163.34737524,0.000189,2]
[315037067,1708746632293,-8356.0,0.00019,2]
[315037068,1708746632305,-194.05652051,0.00019078,2]
[315037069,1708746632314,-500.0,0.00019178,2]
[315037071,1708746632323,-500.0,0.00019178,2]
[315037073,1708746632332,-500.67599699,0.00019178,2]
[315037075,1708746632343,-500.0,0.00019178,2]
[315037077,1708746632351,-504.63815147,0.00019178,2]
[315037079,1708746632361,-500.0,0.00019178,2]
[315037081,1708746632370,-502.16006548,0.00019178,2]
[315037083,1708746632381,-151.69999809,0.00019178,2]
[315037085,1708746632390,-637.31,0.00019178,2]
[315037087,1708746632399,-500.0,0.00019178,2]
[315037089,1708746632409,-513.32081427,0.00019178,2]
[315037091,1708746632418,-500.0,0.00019178,2]
[315037093,1708746632427,-500.74353847,0.00019178,2]
[315037095,1708746632435,-631.97333427,0.00019178,2]
[315037097,1708746632445,-500.0,0.00019178,2]
[315037099,1708746632453,-500.0,0.00019178,2]
[315037101,1708746632462,-1609.41,0.00019178,2]
[315037103,1708746632472,-537.34,0.00019178,2]
[315037105,1708746632480,-768.58,0.00019178,2]
[315037107,1708746632490,-1484.21,0.00019178,2]
[315037109,1708746632500,-244.59010973,0.00019178,2]
[315037111,1708746632509,-501.56260452,0.00019178,2]
[315037113,1708746632518,-159.7563588,0.00019178,2]
[315037115,1708746632528,-769.91,0.00019178,2]
[315037117,1708746632537,-547.59,0.00019178,2]
[315037119,1708746632546,-500.52813147,0.00019178,2]
[315037121,1708746632555,-501.47874304,0.00019178,2]
[315037122,1708746632564,-500.0,0.00019178,2]
[315037124,1708746632573,-501.89355581,0.00019178,2]
[315037125,1708746632582,-500.0,0.00019178,2]
[315037127,1708746632591,-151.0,0.00019178,2]
[315037128,1708746632600,-500.0,0.00019178,2]
[315037130,1708746632609,-739.28,0.00019178,2]
[315037131,1708746632618,-500.0,0.00019178,2]
[315037133,1708746632627,-500.0,0.00019178,2]
[315037135,1708746632636,-501.1123317,0.00019178,2]
[315037137,1708746632645,-9529.2,0.00019178,2]
[315037139,1708746632654,-151.0,0.00019178,2]
[315037141,1708746632664,-500.0,0.00019178,2]
[315037143,1708746632673,-500.0,0.00019178,2]
[315037145,1708746632683,-575.49,0.00019178,2]
[315037147,1708746632693,-5809.93,0.00019178,2]
[315037149,1708746632703,-500.0,0.00019178,2]
[315037151,1708746632712,-507.12463418,0.00019178,2]
[315037153,1708746632722,-686.52,0.00019178,2]
[315037155,1708746632731,-2170.92,0.00019178,2]
[315037169,1708746632858,-500.0,0.00019178,2]
[315037172,1708746632873,-842.0,0.00019178,2]
[315037174,1708746632884,-500.0,0.00019178,2]
[315037175,1708746632894,-500.0,0.00019178,2]
[315037176,1708746632903,-500.0,0.00019178,2]
[315037177,1708746632912,-550.75,0.00019178,2]
[315037178,1708746632921,-506.96431216,0.00019178,2]
[315037179,1708746632931,-3527.35,0.00019178,2]
[315037180,1708746632940,-916.94,0.00019178,2]
[315037181,1708746632951,-10135.98,0.00019178,2]
[315037182,1708746632960,-500.0,0.00019178,2]
[315037183,1708746632969,-996.84,0.00019178,2]
[315037184,1708746632979,-3720.8,0.00019178,2]
[315037185,1708746632989,-500.0,0.00019178,2]
[315037187,1708746632998,-272.22693718,0.00019178,2]
[315037189,1708746633007,-1337.49,0.00019178,2]
[315037191,1708746633016,-1953.06,0.00019178,2]
[315037192,1708746633026,-1346.6,0.00019178,2]
[315037194,1708746633036,-1122.12,0.00019178,2]
[315037196,1708746633045,-500.0,0.00019178,2]
[315037197,1708746633057,-184.43840593,0.00019178,2]
[315037200,1708746633070,-318.4189981,0.00019178,2]
[315037201,1708746633079,-147.76821852,0.00019178,2]
[315037210,1708746638178,-1193.91178148,0.00019178,2]
[315037212,1708746638188,-379.16342984,0.00019178,2]
[315037214,1708746638198,-1104.25,0.00019178,2]
[315037215,1708746638209,-1249.58,0.00019178,2]
[315037216,1708746638220,-899.71,0.00019178,2]
[315037217,1708746638229,-500.0,0.00019178,2]
[315037218,1708746638240,-386.3656851,0.00019178,2]
[315037219,1708746638249,-1068.96,0.00019178,2]
[315037220,1708746638259,-500.61756842,0.00019178,2]
[315037221,1708746638269,-166.666666,0.00019178,2]
[315037222,1708746638278,-173.96,0.00019181,3]
[315037223,1708746638287,-9439.10997516,0.00019191,2]
[315037224,1708746638300,-432.85647337,0.00019191,2]
[315037225,1708746638314,-3246.35455187,0.00019191,2]
[315037245,1708746646356,-342.36884967,0.00019178,2]
[315037249,1708746894376,174.151871,0.00018133,2]
[315037250,1708746964289,15970.718567,0.00018133,2]
[315037288,1708747832498,-652.900589,0.00018859,2]
[315037290,1708747832508,-307.44321553,0.00018859,2]
[315037291,1708747832517,-47.01628613,0.0001886,2]
[315037645,1708747845849,-108.00386649,0.0001886,2]
[315037646,1708747845859,-273.79961368,0.00018899,2]
[315037647,1708747845869,-214.23830664,0.000189,2]
[315037648,1708747845879,-386.13908306,0.00018985,2]
[315037666,1708747846521,-1297.32623286,0.00018985,2]
[315037668,1708747846580,-3430.65793208,0.00018985,2]
[315037694,1708749032615,-652.900589,0.00018977,2]
[315037695,1708749032625,-5581.8217715,0.00018978,2]
[315037696,1708749032635,-718.7061319,0.00018985,2]
[315037723,1708749038549,-964.96462973,0.00018985,2]
[315037726,1708749038561,-533.99952897,0.00018985,2]
[315037811,1708749041822,-809.96960681,0.00018985,2]
[315037827,1708749043644,-289.28323803,0.00018985,2]
[315037828,1708749043700,-608.526257,0.00018985,2]
[315037841,1708749049659,-3944.27490046,0.00018985,2]
[315037854,1708749251928,218.264053,0.00018129,2]
[315037855,1708749293484,9629.0125691,0.00018078,2]
[315037856,1708749336519,73709.1884269,0.00018129,2]
[315037857,1708749415164,217.8359233,0.00018038,2]
[315037930,1708750240969,-652.900589,0.00018128,2]
[315037931,1708750240979,-4331.449411,0.00018129,2]
[315037952,1708750468633,2864.08,0.0002104,15]
[315037994,1708751431975,-652.900589,0.00018128,2]
[315037996,1708751431985,-29956.35943283,0.00018129,2]
[315038059,1708751441123,-1187.42043858,0.00018129,2]
[315038203,1708751446204,-14931.82564721,0.00018129,2]
[315038204,1708751446216,-474.17740683,0.00018129,2]
[315038205,1708751721796,150.933817,0.00018,4]
[315038206,1708751949489,-162.69207032,0.0003555,120]
[315038228,1708752254297,159.37139839,0.00018029,2]
[315038281,1708752632201,-652.900589,0.00018128,2]
[315038282,1708752632210,-5045.29311755,0.00018129,2]
[315038283,1708752632220,-205.14745243,0.000189,2]
[315038284,1708752632230,-5303.2156293,0.00018985,2]
[315038285,1708752632240,-612.94,0.00019168,3]
[315038286,1708752632249,-612.9,0.00019168,3]
[315038287,1708752632258,-252.97522103,0.00019176,2]
[315038289,1708752632383,-155.06202196,0.00019176,2]
[315038291,1708752632393,-260.34849555,0.00019177,2]
[315038292,1708752632402,-500.0,0.00019178,2]
[315038294,1708752632413,-500.0,0.00019178,2]
[315038296,1708752632422,-500.0,0.00019178,2]
[315038297,1708752632432,-500.0,0.00019178,2]
[315038298,1708752632441,-500.0,0.00019178,2]